Cogmind - Beta 15 @@@ ROGUE MODE // 2025.07.15 @ 03:54:16 Player: meta Result: Destroyed by Y-45 Defender with Beam Rifle Performance ------------- Evolutions (2) 1000 Regions Visited (4) 800 Robots Destroyed (58) 290 Value Destroyed (1393) 1393 Prototype IDs (0) 0 Alien Tech Used (0) 0 Bonus (0) 0 TOTAL SCORE: 3483 Bonus ------- None Cogmind --------- Core Integrity 0/550 Matter 12/300 Energy 99/100 System Corruption 13% Temperature Cool (9) Movement Core (250) Ox4 Location -8/Materials Parts ------- > --- POWER (1) -------- (None) > --- PROPULSION (3) --- (None) > --- UTILITY (5) ------ Medium Storage Unit > --- WEAPON (2) ------- Great Maul > --- INVENTORY (10) --- Autogun Flak Cannon Datajack Datajack Datajack Mining Laser Mining Laser Peak State ------------ > --- POWER ------------ Ion Engine > --- PROPULSION ------- Carbon-fiber Leg Carbon-fiber Leg Titanium Leg > --- UTILITY ---------- Medium Storage Unit Improved Sensor Array Improved Signal Interpreter Terrain Scan Processor Improved Light Armor Plating > --- WEAPON ----------- Rocket Launcher Great Maul > --- INVENTORY -------- Carbon-fiber Leg Titanium Leg Improved Heat Sink Autogun Datajack Datajack Datajack Mining Laser Mining Laser [Rating: 28] Favorites ----------- Power Ion Engine Engine Ion Engine Power Core Light Nuclear Core Propulsion Aluminum Leg Leg Aluminum Leg Utility Small Storage Unit Device Improved Terrain Scanner Storage Small Storage Unit Processor Improved Targeting Computer Protection Light Armor Plating Weapon Mining Laser Energy Cannon Beam Cannon Ballistic Gun Assault Rifle Launcher Rocket Launcher Special Weapon Mining Laser Impact Weapon Great Maul Special Melee Weapon Datajack Build | -11 -10 -9 -9 -8 ------- Run | Yrd Mat Mat Min Mat Slots Evolved 4 | . . 2 . 2 Power . | . . . . . Propulsion 1 | . . . . 1 Utility 3 | . . 2 . 1 Weapon . | . . . . . Parts Attached 45 | 7 6 7 3 22 Power 3 | 1 1 1 . . Engine 2 | 1 . 1 . . Core 1 | . 1 . . . Reactor . | . . . . . Propulsion 14 | 2 2 1 1 8 Treads . | . . . . . Leg 14 | 2 2 1 1 8 Wheel . | . . . . . Hover . | . . . . . Flight . | . . . . . Utility 11 | 2 . 3 . 6 Device 4 | 1 . 1 . 2 Storage 2 | 1 . . . 1 Processor 3 | . . 1 . 2 Hackware . | . . . . . Protection 2 | . . 1 . 1 Artifact . | . . . . . Weapon 17 | 2 3 2 2 8 Energy Gun . | . . . . . Energy Cannon 1 | . 1 . . . Ballistic Gun 3 | 2 . 1 . . Ballistic Cannon . | . . . . . Launcher 6 | . . . 1 5 Special Weapon 3 | . 2 1 . . Impact Weapon 3 | . . . 1 2 Slashing Weapon . | . . . . . Piercing Weapon . | . . . . . Special Melee Weapon 1 | . . . . 1 Unidentified Prototypes . | . . . . . Parts Lost 23 | . 2 3 1 17 Power 2 | . . 1 . 1 Propulsion 7 | . . . . 7 Utility 6 | . . 1 . 5 Weapon 8 | . 2 1 1 4 Highest Loss Streak 9 | . 2 1 1 9 To Critical Strikes . | . . . . . Average Backups 6 | 1 5 6 7 8 Power . | . 1 . . . Propulsion 1 | . . 1 1 1 Utility 1 | . 2 2 1 . Weapon 2 | 1 . 1 3 3 Tool/Special . | . . . . . Unused Backups 8 | . . 3 1 4 Power . | . . . . . Propulsion . | . . . . . Utility 2 | . . 2 . . Weapon 4 | . . 1 1 2 Tool/Special 2 | . . . . 2 Average Slot Usage (%) 92 | . 97 92 100 85 Engine 5 | . 4 5 11 4 Core 3 | . 9 4 . . Leg 24 | . 28 22 22 24 Device 11 | . 14 14 11 7 Storage 11 | . 14 11 11 9 Processor 8 | . . 8 11 15 Protection 4 | . . 3 11 7 Energy Cannon 4 | . 5 10 . . Ballistic Gun 2 | . 6 . 2 . Launcher 1 | . . . 1 5 Special Weapon 7 | . 12 9 10 . Impact Weapon 4 | . . . 9 9 Peak Build Rating 28 | 9 12 15 12 28 Average Rating 14 | 7 10 11 11 22 On Entrance 8 | . 9 12 11 12 Naked Turns . | . . . . . Heaviest Build 27 | 14 15 20 20 27 Greatest Support 49 | 20 20 20 20 49 Greatest Overweight (x) 6 | 2 . . . 6 Average Overweight (x) . | . . . . . Largest Inventory Capacity 10 | 8 8 8 8 10 Average Capacity 8 | 7 8 8 8 9 Most Carried 10 | 4 8 8 8 10 Average Carried 6 | 1 5 6 7 8 Final Capacity 10 | 8 8 8 8 10 Final Carried 7 | 4 7 7 6 7 Class Distribution -------------------- 50% | Scavenger-Mutant 49% | Mutant Dominant Class ---------------- Scavenger-Mutant | -10/Materials Scavenger-Mutant | -9/Materials Scavenger-Mutant | -9/Mines Mutant | -8/Materials Resources | -11 -10 -9 -9 -8 ----------- Run | Yrd Mat Mat Min Mat Matter Collected 788 | 322 119 52 20 275 Remotely . | . . . . . Salvage Created 1230 | 132 298 273 15 512 Parts 92 | 14 27 20 1 30 Haulers Intercepted . | . . . . . Recyclers Shooed 5 | . 4 . . 1 Parts Field Recycled . | . . . . . Retrieved Matter . | . . . . . Parts Self-Destructed . | . . . . . Prevented . | . . . . . Kills | -11 -10 -9 -9 -8 ------- Run | Yrd Mat Mat Min Mat Combat Hostiles Destroyed 33 | . 7 8 2 16 Melee 2 | . . . . 2 Guns 6 | . 6 . . . Cannons 9 | . 1 8 . . AOE 13 | . . . 2 11 Classes Destroyed 11 | 2 4 1 . 4 Worker 3 | . 1 . . 2 Builder 9 | . . . . 9 Tunneler 4 | 3 . . 1 . Recycler 3 | 1 1 1 . . Operator 1 | . . . . 1 Watcher 5 | . 2 2 . 1 Swarmer 12 | . 4 3 2 3 Grunt 17 | . 3 4 . 10 Brawler 1 | . . . . 1 Duelist 1 | . . . . 1 Sentry 2 | . . 1 . 1 Best Kill Streak 10 | 2 2 5 2 10 Combat Bots Only 5 | . 2 4 2 5 Max Kills in Single Turn 3 | 1 2 1 1 3 Gunslinging . | . . . . . Exploded 2 | . . . 1 2 Melee 1 | . . . . 1 Uniques/NPCs Destroyed . | . . . . . Combat | -11 -10 -9 -9 -8 -------- Run | Yrd Mat Mat Min Mat Hostile Shots Fired 338 | . 76 46 24 192 Missed 100 | . 22 11 8 59 Hits 238 | . 54 35 16 133 Melee 6 | . . . . 6 Projectile 232 | . 54 35 16 127 Critical Strikes 14 | . . 1 . 13 Damage Taken 3375 | . 509 353 226 2287 Core 743 | . 106 59 24 554 Absorbed by Shields . | . . . . . Core Remaining (%) 78 | 100 57 . 79 . Volleys Fired 145 | 14 50 45 10 26 Largest 2 | 2 2 2 1 1 Hottest 160 | 40 160 160 100 33 Shots Fired 186 | 28 59 63 10 26 Gun 58 | 28 27 3 . . Cannon 41 | . 10 31 . . Launcher 28 | . . . 2 26 Special 59 | . 22 29 8 . Kinetic 58 | 28 27 3 . . Thermal 100 | . 32 60 8 . Explosive 28 | . . . 2 26 Electromagnetic . | . . . . . Robot Hit Streak 8 | 4 8 6 4 3 Robot Miss Streak 4 | 2 3 3 4 3 Penetration Max . | . . . . . Secondary Targets . | . . . . . Shots Hit Robots 118 | 17 28 30 5 38 Core Hits 90 | 8 16 13 3 50 Critical Kills 1 | . . . . 1 Critical Parts Destroyed 5 | . 1 . . 4 Critical Strikes 6 | . 1 . . 5 Destroy 1 | . 1 . . . Smash 5 | . . . . 5 Melee Attacks 52 | . . . 1 51 Impact 45 | . . . 1 44 Slashing . | . . . . . Piercing . | . . . . . Sneak Attacks 5 | . . . . 5 Combat Hostiles . | . . . . . Follow-up Attacks . | . . . . . Damage Inflicted 4622 | 207 422 614 226 3153 Guns 483 | 199 256 28 . . Cannons 488 | . 121 367 . . Explosions 2027 | . . . 149 1878 Melee 1304 | . . . 29 1275 Ramming 56 | 8 21 27 . . Kinetic 483 | 199 256 28 . . Thermal 791 | . 145 559 48 39 Explosive 1988 | . . . 149 1839 Electromagnetic . | . . . . . Impact 1304 | . . . 29 1275 Slashing . | . . . . . Piercing . | . . . . . Highest Corruption 13 | . . . . 13 Average Corruption 12 | . . . . 12 Corruption Purged . | . . . . . Corruption Blocked . | . . . . . Effects 3 | . . . . 3 Message Errors 1 | . . . . 1 Energy Discharges 1 | . . . . 1 Parts Rejected 1 | . . . . 1 Overload Shots . | . . . . . Overflow Damage 391 | . . 4 15 372 Projectiles 4 | . . 4 . . Explosions 74 | . . . 15 59 Melee 313 | . . . . 313 Knockbacks 5 | . . 1 . 4 Impact 5 | . . 1 . 4 Kinetic . | . . . . . Secondary . | . . . . . Self-Inflicted Damage 506 | . . . 97 409 Shots 15 | . . . 2 13 Rammed . | . . . . . Targets Rammed 15 | 1 6 8 . . Kicked 15 | 1 6 8 . . Crushed . | . . . . . Highest Temperature 296 | . 118 296 60 38 Average Temperature 52 | . 35 74 18 9 Received Heat Transfer 1179 | . 135 117 . 927 Effects 2 | . . 2 . . Interference 2 | . . 2 . . Siege Activations . | . . . . . Martial Activations . | . . . . . Shielding Activations . | . . . . . Robots Disrupted . | . . . . . Combat Hostiles . | . . . . . Robots Corrupted 6 | . . . . 6 Combat Hostiles 3 | . . . . 3 Parts Fried 3 | . . . . 3 Impact Corruptions 18 | . . . . 18 Robots Melted . | . . . . . Combat Hostiles . | . . . . . Parts Melted 2 | . . 1 1 . Heat Transferred 1636 | . 309 1177 100 50 Parts Sabotaged . | . . . . . Parts Stolen . | . . . . . Parts Stripped . | . . . . . Power Chain Reactions . | . . . . . Alert | -11 -10 -9 -9 -8 ------- Run | Yrd Mat Mat Min Mat Maximum Alert Level 2 | . . . . 2 Low Security (%) 94 | 100 100 100 100 82 Level 1 5 | . . . . 16 Level 2 . | . . . . . Level 3 . | . . . . . Level 4 . | . . . . . Level 5 . | . . . . . High Security . | . . . . . Max Security . | . . . . . Peak Influence 415 | 5 70 82 78 415 Initial 26 | . . . 24 26 Average 44 | . 12 10 8 113 Influence Increases 1437 | 20 236 232 102 847 Destroy 0b10 Robot/C 660 | . 140 160 40 320 Destroy 0b10 Robot/NC 125 | 20 20 15 5 65 Destroy Leader 140 | . 44 34 10 52 Successful Hack 10 | . 5 5 . . Disable Machine 120 | . 15 . 15 90 Anti-Garrison Action 150 | . . . . 150 Destroy Structure 187 | . 12 18 17 140 Lose Combat Pursuer 45 | . . . 15 30 Influence Decreases 1038 | 20 236 170 96 516 Entered New Map 80 | . . . 38 42 Time Decay 757 | 20 226 150 57 304 Lost Part 201 | . 10 20 1 170 Squads Dispatched 9 | . 1 1 . 7 Investigation . | . . . . . Extermination . | . . . . . Reinforcement 5 | . 1 1 . 3 Assault 2 | . . . . 2 Garrison 2 | . . . . 2 Intercept . | . . . . . Searches Triggered . | . . . . . Construction Impeded 2 | . . 1 . 1 Haulers Reinforced . | . . . . . Active Scanning Responses . | . . . . . Cargo Convoy Interrupts . | . . . . . Stealth | -11 -10 -9 -9 -8 --------- Run | Yrd Mat Mat Min Mat Distress Signals 2 | . . . . 2 Communications Jammed . | . . . . . Distress Signals . | . . . . . Times Spotted 56 | . 12 13 6 25 Peak Tracking Total 6 | . 5 3 3 6 Tactical Retreats 3 | . . . 1 2 Traps | -11 -10 -9 -9 -8 ------- Run | Yrd Mat Mat Min Mat Traps Triggered . | . . . . . Indirectly . | . . . . . Trap Hack Attempts . | . . . . . Triggered . | . . . . . Disarmed . | . . . . . Reprogrammed . | . . . . . Reused . | . . . . . Traps Extracted . | . . . . . Installed . | . . . . . Triggered . | . . . . . Machines | -11 -10 -9 -9 -8 ---------- Run | Yrd Mat Mat Min Mat Machines Disabled 9 | . 1 . 1 7 Max in Single Turn 2 | . 1 . 1 2 Garrison Access 1 | . . . . 1 Machines Repaired . | . . . . . Machines Dismantled . | . . . . . Machines Sabotaged . | . . . . . Overloaded Fab Kills . | . . . . . Hacking | -11 -10 -9 -9 -8 --------- Run | Yrd Mat Mat Min Mat Machines Accessed 6 | . 3 2 . 1 Terminals 3 | . 1 2 . . Fabricators . | . . . . . Repair Stations 1 | . 1 . . . Recycling Units 2 | . 1 . . 1 Scanalyzers . | . . . . . Garrison Access . | . . . . . Total Hacks 11 | . 5 5 . 1 Successful 7 | . 3 4 . . Failed 4 | . 2 1 . 1 Catastrophic . | . . . . . Database Lockouts . | . . . . . Manual 1 | . . 1 . . Terminals 7 | . 2 5 . . Fabricators . | . . . . . Repair Stations 2 | . 2 . . . Recycling Units 2 | . 1 . . 1 Scanalyzers . | . . . . . Garrison Access . | . . . . . Terminal Hacks 5 | . 1 4 . . Record 1 | . . 1 . . Robot Analysis 1 | . . 1 . . Alert Level 1 | . . 1 . . Investigation Status 2 | . 1 1 . . Fabricator Hacks . | . . . . . Repair Station Hacks 1 | . 1 . . . Scan Component 1 | . 1 . . . Recycling Unit Hacks 1 | . 1 . . . Retrieve Components 1 | . 1 . . . Scanalyzer . | . . . . . Garrison Access Hacks . | . . . . . Unauthorized Hacks . | . . . . . Terminals . | . . . . . Fabricators . | . . . . . Repair Stations . | . . . . . Recycling Units . | . . . . . Scanalyzers . | . . . . . Garrison Access . | . . . . . Data Cores Recovered . | . . . . . Used . | . . . . . Hacking Detections 3 | . 1 1 . 1 Full Trace Events . | . . . . . Feedback Events . | . . . . . Feedback Blocked . | . . . . . Robot Schematics Acquired . | . . . . . Robots Built . | . . . . . Authchips . | . . . . . Time . | . . . . . Total Robot Build Rating . | . . . . . Part Schematics Acquired . | . . . . . Parts Built . | . . . . . Authchips . | . . . . . Time . | . . . . . Total Part Build Rating . | . . . . . Parts Repaired . | . . . . . Time . | . . . . . Parts Recycled . | . . . . . Recycled Matter . | . . . . . Retrieved Matter . | . . . . . Retrieved Components 3 | . 3 . . . Parts Scanalyzed . | . . . . . Part Schematics Acquired . | . . . . . Parts Damaged . | . . . . . Bothacking | -11 -10 -9 -9 -8 ------------ Run | Yrd Mat Mat Min Mat Used RIF Installer . | . . . . . Robots Hacked . | . . . . . Non-combat . | . . . . . Combat . | . . . . . Robot Hacks Applied . | . . . . . Relay Couplers Released 2 | . . . . 2 Machine Destruction 2 | . . . . 2 Fabnet Peak Effective % . | . . . . . Robots Rewired . | . . . . . Allies Hacked . | . . . . . Hacks Repelled . | . . . . . Allies | -11 -10 -9 -9 -8 -------- Run | Yrd Mat Mat Min Mat Total Allies . | . . . . . Largest Group . | . . . . . Highest-Rated Group . | . . . . . Highest-Rated Ally . | . . . . . Total Orders . | . . . . . Ally Attacks . | . . . . . Total Damage . | . . . . . Kills . | . . . . . Allies Corrupted . | . . . . . Allies Melted . | . . . . . Intel | -11 -10 -9 -9 -8 ------- Run | Yrd Mat Mat Min Mat Active Infowar (turns) 2773 | 214 904 812 316 527 Sensors 452 | . . . . 452 Terrain 1391 | 214 904 273 . . Seismic 1203 | . . 812 316 75 Robot Analysis Total 1 | . . 1 . . Derelict Logs Recovered . | . . . . . Drone Launches . | . . . . . Drone Recoveries . | . . . . . Exploration | -11 -10 -9 -9 -8 ------------- Run | Yrd Mat Mat Min Mat Turns Passed 3489 | 293 904 828 316 1148 Spaces Moved 2000 | 197 599 421 224 559 Core 25 | 12 . . . 13 Treads . | . . . . . Legs 1975 | 185 599 421 224 546 Wheels . | . . . . . Hover . | . . . . . Flight . | . . . . . Fastest Speed 50 | 50 120 120 120 120 Average Speed 128 | 121 120 120 120 150 Slowest Speed 350 | 150 120 120 120 350 Overloaded Moves . | . . . . . Propulsion Burnouts . | . . . . . Robots Hopped . | . . . . . Potential Cave-ins . | . . . . . Cave-ins Triggered . | . . . . . Exploration Rate (%) 28 | 7 54 17 38 25 Regions Visited 4 Branch Regions 1 Pre-discovered Areas . | . . . . . Known Exits Taken . | . . . . . Unknown Exits Taken 4 | 1 1 1 1 . Scrap Searched 2 | . . . 2 . Spaces Dug 28 | . 9 12 1 6 Terrain Destroyed 240 | . 12 18 32 178 Melee 6 | . . . . 6 Projectile 35 | . 12 18 5 . AOE 199 | . . . 27 172 Terrain Rammed . | . . . . . Walls Destroyed . | . . . . . Machines Disabled . | . . . . . Actions | -11 -10 -9 -9 -8 --------- Run | Yrd Mat Mat Min Mat Total 2525 | 222 682 623 246 752 Wait 194 | . 11 132 2 49 Move 1996 | 196 598 420 223 559 Hop . | . . . . . Pick Up 36 | 4 5 6 3 18 Fast Attach 18 | 7 1 2 . 8 Attach 22 | . 2 4 2 14 Detach 5 | . 1 1 1 2 Swap 16 | . 4 1 1 10 Drop 26 | . 4 4 3 15 Fire 145 | 14 50 45 10 26 Melee 52 | . . . 1 51 Ram . | . . . . . Kick 15 | 1 6 8 . . Crush . | . . . . . Escape Stasis . | . . . . . Rewire . | . . . . . Trap . | . . . . . Miscellaneous . | . . . . . Route ------- -11/Scrapyard -10/Materials (discovered 2 exits: *Mat x2) -9/Materials -9/Mines -8/Materials History --------- Turn | Location | Event 16 | -11/Scrapyard | Discovered new exit (range 15) 294 | -11/Scrapyard | Entered Materials 315 | -10/Materials | Build established: Mutant 875 | -10/Materials | Build established: Scavenger-Mutant 1012 | -10/Materials | Discovered new exit (range 10) 1152 | -10/Materials | Discovered new exit (range 12) 1198 | -10/Materials | Entered another Materials area 1198 | -9/Materials | Evolved 2 slots: Utility x2 1990 | -9/Materials | Discovered new exit (range 8) 2026 | -9/Materials | Entered Mines 2136 | -9/Mines | Received a Rocket Launcher from a helpful Derelict 2300 | -9/Mines | Discovered new exit (range 7) 2342 | -9/Mines | Entered Materials 2342 | -8/Materials | Evolved 2 slots: Propulsion x1, Utility x1 2628 | -8/Materials | Build established: Mutant 2942 | -8/Materials | Lost 3 parts (1p2n) 3346 | -8/Materials | Garrison activated, responded to threat 3363 | -8/Materials | Core integrity fell below 50% 3378 | -8/Materials | System corruption reached 10% 3394 | -8/Materials | Core integrity fell below 20% 3418 | -8/Materials | Lost 9 parts (3n4u2w) 3490 | -8/Materials | Destroyed by Y-45 Defender with Beam Rifle Last Messages --------------- 03476_ Garrison Access disabled. 03476_ Relay Coupler [Swarmer] tumbles out of Garrison Access. 03476_ Relay Coupler [Behemoth] tumbles out of Garrison Access. 03476_ K-01 Serf collects debris. 03477_ System corrupted: Imp. Heat Sink rejected. 03477_ The unstable cave ceiling collapses. 03479_ K-01 Serf collects debris. 03480_ Y-45 Defender suffers critical hit (Smash). 03480_ Destroyed Heat Sink. 03480_ Y-45 Defender system corrupted by crushing effect. 03482_ K-01 Serf collects debris. 03484_ The unstable cave ceiling collapses. 03486_ K-01 Serf collects debris. 03487_ Rocket Launcher destroyed. 03489_ K-01 Serf collects debris. Map ----- +----------------------------------------------------+ | ?????????????????????????????# """ ### | | ?????????????????????????????# """ # ! | | ?????????????????????????????# """ + !! | | ?????????????????????????????# # ! | | | ?????????????????????????????######"##### | | ???????????????????????????????# ####### | | ???????????????????????????????# # | | ???????????????????????????????# # | | ???????????????????????????????# # % | | ???????????????????????????????# + ### | | ??????????????????####???????### # # | | ???????????????? ? #???????########## # " | | ???????????????# """ #???????# # " | | ???????????????#!"G #???????# # " | | ?????????????### ###?????# # | | ?????????????# ; " #?????# ^ # | | ????????????## ; " #?????# ### | | ????????????# " ######## ## | | ????????????# " # ### ### | | ????????????## # #?# | | ????????????# # / #?# | | ????????????# # #?# | | ?????????????# ! # # #?# | | ??????# ###; # # # ### | | ??????+ Y # "T" | | ??????# @ # | | ??????# ""o """ # | | ??????## "Y """ k # #########/### | | ????????? "" """ # ## # ## """ ## | | ????????? ! ## "Y" # | | ???????? # ## ## # | | ???????# #### ## # | | ???????#+#### #??# ## """ # | | ????????????# ######+####+#### ## """ # | | ????????????# # ## #" """ # | | ????????????##?# + ## # | | ???????????????# ############### | | ???????????????# #?????????????# | | ???????????????# #?????????????## | | ???????????????# #??????????????? | | ???????????????##############???????????????? | | | | | | | | | | | | | | | | | | | +----------------------------------------------------+ Best States ------------- Heat Dissipation 45 Energy Generation 14 Energy Capacity 250 Matter Stores 300 Matter Capacity 300 Sight Range 16 Robot Scan Range 15 Terrain Scan Range 16 Terrain Scan Density 85 Armor Coverage 150 Evasion (%) 55 Targeting Accuracy 6 Authchip Count 1 Item Schematics ----------------- None Robot Schematics ------------------ None Fabricated ------------ Nothing Repaired ---------- Nothing Alien Tech Used ----------------- None Achievements -------------- I Spy Challenges ------------ None Game ------ Seed AerolevSniperNanovents Manual? 0 Play Time 00:27:34 Cumulative 8.6 hours Start 2025.07.15 @ 03:27:31 End 2025.07.15 @ 03:54:16 Sessions 1 Manual Loads 0 Difficulty Rogue Special Mode None Game No. 14 Rogue 10 Adventurer 4 Explorer 0 Win Type - Total 0 Types 0/0/0/0/0/0/0/0/0/0 Lore% 2 Gallery% 12 Achievement% 16 Wizard Run 0 Options --------- Layout 1 ASCII 0 Keyboard 1 Movement Arrows Keybinds 0 Fullscreen 2 Font 24/Smallcaps Map View 50x35 Zoom Use 0% Tactical HUD 1 Map Filters NONE Filters NONE Steam 1 RUN: 8a688e40-a3f6-471d-88d4-191f1fb2a008